bitfinex-derivatives/quotes_SOLF0:USTF0_20250928
["timestamp","ask_amount","ask_price","bid_price","bid_amount"]
[1759084414270,7.72,205.43,205.37,5.45]
[1759084415861,12.0996,205.43,205.37,5.45]
[1759084417269,7.72,205.41,205.34,6.03925599]
[1759084418567,4.3804,205.39,205.34,0.58925599]
[1759084418771,7.72,205.38,205.35,5.45]
[1759084419771,7.72,205.46,205.35,5.45]
[1759084419972,7.72,205.41,205.35,5.45]
[1759084425569,7.72,205.41,205.36,4.381]
[1759084426077,7.72,205.41,205.37,5.45]
[1759084426578,7.72,205.41,205.36,4.381]
[1759084427178,7.72,205.41,205.37,5.45]
[1759084427774,7.72,205.41,205.36,4.381]
[1759084427977,7.72,205.42,205.36,9.831]
[1759084428575,6.076272,205.43,205.36,5.45]
[1759084428766,7.72,205.42,205.36,5.45]
[1759084429379,6.076572,205.41,205.34,4.97065599]
[1759084429578,7.72,205.4,205.34,0.58925599]
[1759084430078,6.077172,205.39,205.34,0.58925599]
[1759084431286,4.3807,205.38,205.33,63.46]
[1759084431580,7.72,205.37,205.33,63.46]
[1759084431780,4.3807,205.38,205.33,63.46]
[1759084432178,7.72,205.37,205.33,63.46]
[1759084432877,4.3807,205.38,205.33,63.46]
[1759084433880,7.98,205.37,205.34,5.46]
[1759084437788,1.696672,205.39,205.34,5.46]
[1759084438180,7.98,205.38,205.34,5.46]
[1759084438581,1.696672,205.39,205.34,5.46]
[1759084438784,7.98,205.38,205.34,5.46]
[1759084439184,1.696672,205.39,205.34,5.46]
[1759084439486,7.98,205.38,205.34,5.46]
[1759084439689,1.696672,205.39,205.34,5.46]
[1759084439889,7.98,205.38,205.34,5.46]
[1759084440090,9.676672,205.39,205.31,5.46]
[1759084440285,73.41875157,205.49,205.35,5.46]
[1759084440286,7.98,205.42,205.35,5.46]
[1759084440479,7.98,205.42,205.39,9.8402]
[1759084441084,7.98,205.44,205.39,9.8402]
[1759084441580,1.696672,205.45,205.39,9.8402]
[1759084441794,3.36188481,205.44,205.39,9.8402]
[1759084441987,7.98,205.44,205.39,9.8402]
[1759084442186,7.03310428,205.47,205.39,9.8402]
[1759084442387,15.72210009,205.46,205.37,4.3808]
[1759084442591,7.98,205.44,205.37,4.3808]
[1759084442786,7.98,205.44,205.36,5.46]
[1759084444000,7.98,205.44,205.34,68.156]
[1759084444001,7.98,205.43,205.39,4.3802]
[1759084444294,7.98,205.46,205.39,4.3802]
[1759084444498,3.37124958,205.45,205.39,4.3802]
[1759084444697,3.37124958,205.44,205.39,4.3802]
[1759084444899,7.98,205.46,205.39,4.3802]
[1759084445096,3.37080844,205.45,205.39,4.3802]
[1759084445296,7.98,205.43,205.39,4.3802]
[1759084445499,7.98,205.46,205.39,4.3802]
[1759084445695,3.37161963,205.45,205.39,4.3802]
[1759084445895,3.37161963,205.44,205.39,4.3802]
[1759084446202,7.98,205.46,205.39,4.3802]
[1759084446398,7.98,205.44,205.39,4.3802]
[1759084446590,7.98,205.46,205.39,4.3802]
[1759084446790,3.37209138,205.45,205.39,4.3802]
[1759084446993,3.37209138,205.44,205.39,9.8402]
[1759084447200,7.98,205.46,205.39,9.8402]
[1759084447402,3.37244867,205.45,205.39,9.8402]
[1759084447604,3.37244867,205.44,205.39,9.8402]
[1759084447904,7.98,205.46,205.39,9.8402]
[1759084448194,3.37238733,205.45,205.39,9.8402]
[1759084448402,7.98,205.43,205.39,9.8402]
[1759084448597,7.98,205.46,205.39,9.8402]
[1759084448897,3.37368863,205.45,205.39,9.8402]
[1759084449091,3.37368863,205.44,205.39,9.8402]
[1759084449295,7.98,205.42,205.39,9.8402]
[1759084457210,7.79,205.45,205.39,4.3802]
[1759084457407,7.79,205.43,205.39,4.3802]
[1759084457600,3.37898826,205.42,205.39,4.3802]
[1759084457803,7.79,205.45,205.39,4.3802]
[1759084458003,7.79,205.43,205.39,4.3802]
[1759084458299,13.73349049,205.62,205.34,68.156]
[1759084458300,7.79,205.45,205.37,68.1461]
[1759084458501,7.79,205.45,205.38,5.45]
[1759084458502,3.3798657,205.44,205.38,5.45]
[1759084458707,11.1698657,205.43,205.38,4.3804]
[1759084459010,11.1698657,205.42,205.35,5.45]
[1759084459308,7.79,205.47,205.35,5.45]
[1759084459510,7.79,205.45,205.35,5.45]
[1759084459811,3.38014144,205.44,205.39,4.3802]
[1759084460103,11.17014144,205.43,205.4,5.45]
[1759084460309,3.38014144,205.42,205.4,5.45]
[1759084460502,7.79,205.43,205.4,5.45]
[1759084460705,3.38031442,205.42,205.4,5.45]
[1759084461010,7.79,205.43,205.4,5.45]
[1759084461307,3.38031403,205.42,205.4,5.45]
[1759084461508,7.79,205.43,205.4,5.45]
[1759084461809,3.38049498,205.42,205.4,5.45]
[1759084462006,7.79,205.43,205.4,5.45]
[1759084462305,3.38048821,205.42,205.4,5.45]
[1759084462505,7.79,205.43,205.4,5.45]
[1759084462705,3.38051824,205.42,205.4,5.45]
[1759084462907,7.79,205.43,205.39,4.3802]
[1759084463107,3.36216703,205.42,205.4,5.45]
[1759084463309,7.79,205.43,205.4,5.45]
[1759084463509,3.36209626,205.42,205.4,5.45]
[1759084463808,7.79,205.43,205.41,5.45]
[1759084465211,20.58,205.49,205.4,4.38]
[1759084465212,4.3783,205.49,205.4,4.38]
[1759084465410,7.5,205.47,205.41,9.8298]
[1759084465604,3.36129097,205.46,205.39,68.1385]
[1759084465809,7.5,205.48,205.4,5.45]
[1759084466012,3.36087705,205.47,205.4,5.45]
[1759084466213,7.5,205.48,205.4,5.45]
[1759084466815,0.41959772,205.5,205.42,5.45]
[1759084467012,3.35911235,205.49,205.42,5.45]
[1759084467321,0.41959772,205.5,205.42,5.45]
[1759084467517,3.3576731,205.49,205.45,4.3789]
[1759084467716,7.5,205.49,205.46,5.45]
[1759084469015,7.5,205.53,205.46,5.45]
[1759084469215,3.35457178,205.52,205.46,5.45]
[1759084469416,7.5,205.53,205.46,5.45]
[1759084469611,7.5,205.53,205.49,4.3782]
[1759084469810,7.5,205.53,205.5,5.45]
[1759084470610,7.5,205.53,205.5,9.8277]
[1759084474513,7.5,205.58,205.5,5.45]
[1759084475127,87.23440428,205.59,205.47,9.8284]
[1759084475420,118.04,205.58,205.47,9.8284]
[1759084475623,7.5,205.55,205.47,9.8284]
[1759084475823,4.3768,205.56,205.47,9.8284]
[1759084476018,7.5,205.55,205.47,9.8284]
[1759084476219,4.3768,205.56,205.47,9.8284]
[1759084476620,7.5,205.55,205.47,9.8284]
[1759084477120,4.3768,205.56,205.47,9.8284]
[1759084477325,7.5,205.55,205.47,9.8284]
[1759084477527,4.3768,205.56,205.47,9.8284]
[1759084477719,7.5,205.55,205.47,9.8284]
[1759084478919,4.3768,205.56,205.47,9.8284]
[1759084479121,7.5,205.55,205.47,9.8284]
[1759084479323,4.3768,205.56,205.47,9.8284]
[1759084479527,7.5,205.55,205.47,9.8284]
[1759084479729,2.65440428,205.56,205.44,4.379]
[1759084479921,2.65440428,205.56,205.44,9.829]
[1759084480127,7.5,205.55,205.44,5.45]
[1759084481230,7.5,205.53,205.47,5.45]
[1759084481932,7.5,205.53,205.47,9.8284]
[1759084485135,7.5,205.53,205.49,5.45]
[1759084485429,7.5,205.54,205.49,5.45]
[1759084485734,4.377,205.55,205.49,5.45]
[1759084486430,7.5,205.54,205.49,5.45]
[1759084486626,4.377,205.55,205.49,5.45]
[1759084487229,7.5,205.54,205.49,5.45]
[1759084487436,4.377,205.55,205.49,5.45]
[1759084487828,7.5,205.54,205.49,5.45]
[1759084488232,4.377,205.55,205.49,5.45]
[1759084488432,7.5,205.54,205.49,5.45]
[1759084488728,4.377,205.55,205.49,5.45]
[1759084489133,7.5,205.54,205.49,5.45]
[1759084489735,4.377,205.55,205.49,5.45]
[1759084490133,7.5,205.54,205.49,5.45]
[1759084490331,4.377,205.55,205.49,5.45]
[1759084491639,7.5,205.54,205.49,5.45]
[1759084492047,4.377,205.55,205.49,5.45]
[1759084492341,7.5,205.54,205.49,5.45]
[1759084492545,4.377,205.55,205.49,5.45]
[1759084493247,7.5,205.54,205.48,9.8282]
[1759084501458,8.03,205.58,205.49,5.45]
[1759084502260,8.03,205.58,205.5,1.69649883]
[1759084502557,8.03,205.58,205.51,9.8276]
[1759084502754,8.03,205.58,205.52,5.45]
[1759084503358,8.03,205.58,205.52,9.8273]
[1759084503556,8.03,205.58,205.52,4.3773]
[1759084503759,8.03,205.58,205.53,5.45]
[1759084503955,8.03,205.58,205.53,9.8271]
[1759084504250,8.03,205.58,205.54,5.45]
[1759084504863,8.03,205.58,205.53,4.3771]
[1759084505061,8.03,205.58,205.54,5.45]
[1759084505257,8.03,205.58,205.53,4.3771]
[1759084506056,8.03,205.58,205.54,5.45]
[1759084506257,8.03,205.58,205.53,4.3771]
[1759084506464,8.03,205.59,205.53,5.45]
[1759084513363,8.03,205.59,205.54,5.45]
[1759084513564,8.03,205.62,205.55,5.45]
[1759084514069,8.03,205.62,205.55,9.8268]
[1759084517058,12.4055,205.62,205.55,9.8268]
[1759084517257,8.03,205.62,205.55,5.45]
[1759084517863,4.3757,205.61,205.55,5.45]
[1759084518067,8.03,205.6,205.54,7.14649883]
[1759084529271,7.6,205.63,205.56,1.69649883]
[1759084529464,7.6,205.66,205.6,1.69649883]
[1759084529666,7.6,205.69,205.6,7.14649883]
[1759084530072,7.6,205.67,205.6,7.14649883]
[1759084530574,4.3747,205.66,205.6,7.14649883]
[1759084530768,7.6,205.65,205.6,7.14649883]
[1759084531376,4.3747,205.66,205.6,7.14649883]
[1759084531572,7.6,205.65,205.6,7.14649883]
[1759084531872,7.6,205.65,205.6,1.69649883]
[1759084532173,4.3747,205.66,205.6,1.69649883]
[1759084532372,7.6,205.65,205.6,7.14649883]
[1759084532573,4.3747,205.66,205.6,1.69649883]
[1759084532778,7.6,205.65,205.6,1.69649883]
[1759084533176,4.3747,205.66,205.6,1.69649883]
[1759084533573,7.6,205.65,205.6,1.69649883]
[1759084533879,4.3747,205.66,205.6,1.69649883]
[1759084534075,7.6,205.65,205.6,1.69649883]
[1759084534374,4.3747,205.66,205.6,1.69649883]
[1759084534678,7.6,205.65,205.6,1.69649883]
[1759084534875,4.3747,205.66,205.6,1.69649883]
[1759084535078,4.3747,205.66,205.61,5.45]
[1759084535380,7.6,205.65,205.61,5.45]
[1759084535774,4.3747,205.66,205.61,5.45]
[1759084535975,7.6,205.66,205.61,5.45]
[1759084536681,7.6,205.67,205.61,5.45]
[1759084537873,7.6,205.67,205.62,1.69649883]
[1759084538078,12.64505635,205.7,205.63,5.45]
[1759084539080,7.6,205.68,205.63,5.45]
[1759084539280,7.6,205.68,205.62,1.69649883]
[1759084542087,11.9742,205.68,205.62,1.69649883]
[1759084543185,7.6,205.68,205.63,5.45]
[1759084543391,7.6,205.69,205.63,5.45]
[1759084544685,11.9741,205.69,205.63,5.45]
[1759084548083,4.3742,205.68,205.63,5.45]
[1759084548487,4.3742,205.68,205.62,6.07169883]
[1759084548488,11.9742,205.68,205.62,11.52169883]
[1759084550988,4.3742,205.68,205.62,6.07169883]
[1759084551188,7.6,205.67,205.62,6.07169883]
[1759084551594,4.3742,205.68,205.63,5.45]
[1759084551987,7.6,205.67,205.63,5.45]
[1759084552786,4.3742,205.68,205.63,5.45]
[1759084552988,7.6,205.67,205.63,5.45]
[1759084553587,7.83,205.67,205.63,5.45]
[1759084553892,7.83,205.67,205.62,6.07169883]
[1759084554088,7.83,205.67,205.63,5.43]
[1759084554595,4.3742,205.68,205.63,5.43]
[1759084554793,7.83,205.67,205.63,5.43]
[1759084554996,12.2042,205.68,205.63,5.43]
[1759084555292,4.3742,205.68,205.63,5.43]
[1759084555493,7.83,205.67,205.63,5.43]
[1759084555890,7.83,205.67,205.62,4.3752]
[1759084556088,4.3742,205.68,205.63,5.43]
[1759084556488,7.83,205.67,205.63,5.43]
[1759084557096,4.3742,205.68,205.63,5.43]
[1759084557287,7.83,205.67,205.63,5.43]
[1759084557486,4.3742,205.68,205.63,5.43]
[1759084557895,12.2044,205.67,205.59,4.3759]
[1759084558090,12.2044,205.67,205.6,7.12649883]
[1759084558493,7.83,205.67,205.6,5.43]
[1759084559086,1.69649883,205.64,205.57,9.8064]
[1759084559290,7.83,205.63,205.57,5.43]
[1759084560690,7.83,205.63,205.57,9.8063]
[1759084562098,7.83,205.63,205.58,5.43]
[1759084562299,4.3749,205.65,205.57,4.3763]
[1759084562500,7.83,205.64,205.58,5.43]
[1759084563100,7.83,205.67,205.57,5.43]
[1759084563594,7.83,205.67,205.61,4.3754]
[1759084563988,4.3739,205.69,205.61,4.3754]
[1759084564193,7.83,205.68,205.62,5.43]
[1759084564801,12.2042,205.68,205.62,5.43]
[1759084570905,4.3744,205.67,205.62,5.43]
[1759084571307,8.0,205.66,205.62,5.43]
[1759084571499,4.3744,205.67,205.62,5.43]
[1759084571699,8.0,205.66,205.62,5.43]
[1759084572100,4.3744,205.67,205.62,5.43]
[1759084572403,8.0,205.66,205.62,5.43]
[1759084573000,4.3744,205.67,205.62,5.43]
[1759084574303,8.0,205.66,205.62,5.43]
[1759084574800,4.3744,205.67,205.62,5.43]
[1759084575006,8.0,205.66,205.62,5.43]
[1759084575200,4.3744,205.67,205.62,5.43]
[1759084575404,8.0,205.66,205.62,5.43]
[1759084575595,4.3744,205.67,205.61,4.3754]
[1759084575800,8.0,205.66,205.61,4.3754]
[1759084576400,12.3746,205.66,205.6,5.48]
[1759084577904,8.0,205.66,205.6,5.48]
[1759084578807,8.0,205.66,205.61,4.3754]
[1759084579009,8.0,205.66,205.6,5.48]
[1759084580006,12.3747,205.66,205.6,5.48]
[1759084584019,8.0,205.66,205.6,5.48]
[1759084584922,7.25,205.69,205.59,5.43]
[1759084585220,7.25,205.69,205.61,5.43]
[1759084585819,7.25,205.69,205.63,4.375]
[1759084586018,7.25,205.69,205.61,5.43]
[1759084586422,12.56185157,205.73,205.67,9.8043]
[1759084586620,7.25,205.73,205.67,9.8043]
[1759084587220,5.31185157,205.77,205.7,5.43]
[1759084587418,7.25,205.78,205.7,5.43]
[1759084588025,7.25,205.78,205.7,9.8035]
[1759084588426,7.25,205.78,205.7,5.43]
[1759084588820,7.25,205.78,205.7,9.8037]
[1759084591327,7.25,205.78,205.71,5.43]
[1759084593324,7.25,205.78,205.72,5.43]
[1759084595930,7.25,205.78,205.7,2.64913163]
[1759084596333,67.999,205.81,205.69,9.8038]
[1759084596531,7.25,205.8,205.69,9.8038]
[1759084597029,67.999,205.81,205.69,9.8038]
[1759084597329,7.25,205.8,205.69,9.8038]
[1759084597730,4.3722,205.78,205.69,9.8038]
[1759084598134,7.25,205.77,205.69,9.8038]
[1759084598435,4.3722,205.78,205.69,9.8038]
[1759084599323,7.25,205.77,205.69,9.8038]
[1759084599528,7.25,205.77,205.71,9.8034]
[1759084602931,7.25,205.8,205.68,7.02303163]
[1759084603137,7.25,205.8,205.68,4.3739]
[1759084603542,70.64863163,205.81,205.67,5.43]
[1759084603543,7.25,205.73,205.67,5.43]
[1759084603840,7.25,205.76,205.63,5.43]
[1759084604041,7.25,205.72,205.64,4.3749]
[1759084604735,7.25,205.72,205.65,5.43]
[1759084605329,7.25,205.72,205.65,9.8045]
[1759084607745,7.25,205.71,205.65,9.8045]
[1759084609933,11.6236,205.71,205.65,5.43]
[1759084610133,2.64913163,205.72,205.61,123.23]
[1759084610336,7.25,205.71,205.61,5.43]
[1759084610742,4.3742,205.68,205.61,9.8055]
[1759084610937,7.25,205.67,205.61,9.8055]
[1759084611442,11.6244,205.67,205.61,5.43]
[1759084614747,4.3748,205.65,205.59,4.3758]
[1759084614936,11.9548,205.65,205.59,4.3758]
[1759084615541,11.9548,205.65,205.58,5.44]
[1759084615848,7.58,205.65,205.58,5.44]
[1759084616648,7.58,205.65,205.58,9.8161]
[1759084620553,11.9549,205.65,205.58,9.8161]
[1759084623251,4.3755,205.62,205.55,68.41120115]
[1759084623460,7.58,205.61,205.55,68.41120115]
[1759084624254,1.69579075,205.61,205.54,117.86]
[1759084624447,7.58,205.6,205.53,5.44]
[1759084625562,11.9559,205.6,205.53,5.44]
[1759084626750,7.58,205.58,205.5,7.13579075]
[1759084627962,11.9564,205.58,205.5,7.13579075]
[1759084628854,4.3766,205.57,205.5,5.44]
[1759084629052,7.58,205.56,205.5,5.44]
[1759084630560,4.3769,205.55,205.5,5.44]
[1759084630862,7.58,205.54,205.5,5.44]
[1759084631164,8.06,205.54,205.5,5.44]
[1759084631362,4.3769,205.55,205.5,5.44]
[1759084631660,8.06,205.54,205.5,5.44]
[1759084632863,4.3769,205.55,205.5,5.44]
[1759084633067,8.06,205.54,205.5,5.44]
[1759084633258,8.06,205.56,205.5,5.44]
[1759084637571,1.69579075,205.58,205.51,4.3776]
[1759084637867,8.06,205.57,205.51,9.8576]
[1759084638462,12.436,205.6,205.53,5.48]
[1759084638663,1.69579075,205.62,205.54,5.48]
[1759084639168,1.69579075,205.62,205.56,9.8565]
[1759084640066,1.69579075,205.62,205.56,5.48]
[1759084640270,8.06,205.61,205.56,5.48]
[1759084640564,8.06,205.61,205.55,5.48]
[1759084641672,4.3753,205.63,205.51,5.48]
[1759084641673,8.06,205.59,205.51,5.48]
[1759084641865,1.69579075,205.56,205.51,5.48]
[1759084642063,8.06,205.55,205.51,5.48]
[1759084642471,1.69579075,205.56,205.51,5.48]
[1759084642668,8.06,205.55,205.51,5.48]
[1759084643965,1.69579075,205.56,205.51,5.48]
[1759084644175,7.43,205.55,205.47,9.8284]
[1759084646771,7.43,205.53,205.47,5.45]
[1759084647168,9.12579075,205.56,205.47,5.45]
[1759084647474,9.12579075,205.56,205.47,9.8284]
[1759084648669,13.50259075,205.56,205.47,9.8284]
[1759084649375,7.43,205.56,205.5,5.45]
[1759084650772,7.43,205.56,205.5,9.8278]
[1759084655181,7.43,205.59,205.51,5.45]
[1759084656584,11.8061,205.59,205.52,4.3773]
[1759084657182,4.3764,205.58,205.51,5.45]
[1759084657394,7.43,205.57,205.51,5.45]
[1759084657790,11.8065,205.57,205.51,9.8276]
[1759084658089,5.31185157,205.66,205.51,9.8276]
[1759084658090,7.43,205.61,205.54,1.69579075]
[1759084658289,7.43,205.61,205.55,5.45]
[1759084659190,7.43,205.61,205.58,5.45]
[1759084660993,13.50079075,205.64,205.57,9.8264]
[1759084661493,7.43,205.64,205.57,9.8264]
[1759084663192,7.43,205.65,205.59,9.8259]
[1759084664293,9.12579075,205.68,205.61,5.45]
[1759084665095,13.49999075,205.68,205.61,5.45]
[1759084666694,13.49999075,205.68,205.6,4.3756]
[1759084666891,7.43,205.65,205.58,7.14579075]
[1759084668588,7.43,205.65,205.59,4.3758]
[1759084668793,7.43,205.65,205.58,7.14579075]
[1759084669700,7.43,205.67,205.6,4.3756]
[1759084670201,7.43,205.67,205.61,4.3754]
[1759084671097,9.12579075,205.68,205.62,5.45]
[1759084672192,9.12579075,205.68,205.64,4.3747]
[1759084672391,1.69579075,205.68,205.64,4.3747]
[1759084672595,7.43,205.67,205.64,4.3747]
[1759084673192,7.43,205.67,205.65,4.3746]
[1759084673389,7.43,205.69,205.65,4.3746]
[1759084673591,1.69579075,205.68,205.65,4.3746]
[1759084673796,7.59,205.67,205.65,4.3746]
[1759084673999,1.69579075,205.68,205.65,4.3746]
[1759084674196,7.59,205.67,205.65,4.3746]
[1759084674397,1.69579075,205.68,205.65,4.3746]
[1759084674600,7.59,205.67,205.65,4.3746]
[1759084675100,1.69579075,205.68,205.65,4.3746]
[1759084675297,7.59,205.67,205.65,4.3746]
[1759084675997,1.69579075,205.68,205.65,4.3746]
[1759084676396,7.59,205.67,205.65,4.3746]
[1759084676805,7.59,205.67,205.62,5.45]
[1759084676806,7.59,205.7,205.64,68.0539]
[1759084677004,7.59,205.7,205.65,5.47]
[1759084677302,7.59,205.7,205.64,69.74969075]
[1759084678090,7.59,205.7,205.65,5.47]
[1759084678705,1.69579075,205.73,205.68,5.47]
[1759084679000,7.59,205.72,205.67,5.47]
[1759084679602,7.59,205.72,205.66,69.74389075]
[1759084679904,7.59,205.72,205.67,5.47]
[1759084680105,7.59,205.74,205.66,75.21389075]
[1759084681007,7.59,205.72,205.63,5.47]
[1759084681207,7.59,205.7,205.63,5.47]
[1759084681602,1.69579075,205.71,205.67,4.3742]
[1759084681897,7.59,205.7,205.67,4.3742]
[1759084682103,1.69579075,205.71,205.67,4.3742]
[1759084682499,7.59,205.7,205.65,4.3747]
[1759084682700,1.69579075,205.69,205.62,117.94]
[1759084682900,7.59,205.68,205.6,7.16579075]
[1759084683109,7.59,205.68,205.65,5.47]
[1759084683605,7.59,205.68,205.65,9.8446]
[1759084684406,7.59,205.72,205.65,4.3746]
[1759084684806,7.59,205.72,205.63,4.3751]
[1759084688106,7.59,205.72,205.64,4.3748]
[1759084688808,7.59,205.72,205.65,9.8446]
[1759084691703,7.0205755,205.74,205.65,9.8446]
[1759084692514,7.37,205.73,205.65,9.8446]
[1759084692910,7.0205755,205.74,205.65,9.8446]
[1759084693208,7.37,205.73,205.65,9.8446]
[1759084693715,7.0205755,205.74,205.65,9.8446]
[1759084693917,7.37,205.72,205.65,9.8446]
[1759084694216,4.3731,205.73,205.65,9.8446]
[1759084695003,7.37,205.72,205.65,9.8446]
[1759084695404,4.3731,205.73,205.65,9.8446]
[1759084695610,7.37,205.72,205.65,9.8446]
[1759084703021,7.37,205.73,205.63,4.3751]
[1759084703226,7.37,205.73,205.62,5.44]
[1759084704024,96.77,205.73,205.62,5.44]
[1759084704626,7.74,205.69,205.62,5.44]
[1759084706722,7.74,205.69,205.62,9.8152]
[1759084711227,7.74,205.69,205.63,4.3751]
[1759084716224,4.3733,205.72,205.63,9.8151]
[1759084716626,4.3736,205.71,205.63,9.8151]
[1759084716825,7.74,205.7,205.63,9.8151]
[1759084717529,7.74,205.69,205.63,9.8151]
[1759084720230,7.74,205.68,205.63,9.8151]
[1759084720827,12.114,205.69,205.63,9.8151]
[1759084723833,7.74,205.69,205.64,5.44]
[1759084724039,7.74,205.73,205.63,5.44]
[1759084724831,4.3733,205.72,205.66,4.3744]
[1759084725328,7.74,205.71,205.66,4.3744]
[1759084725638,4.3733,205.72,205.66,4.3744]
[1759084726432,7.74,205.71,205.66,9.8144]
[1759084726837,7.74,205.71,205.67,5.44]
[1759084727444,4.3733,205.72,205.67,5.44]
[1759084728050,7.74,205.71,205.67,5.44]
[1759084728250,4.3733,205.72,205.67,5.44]
[1759084728745,7.74,205.71,205.67,5.44]
[1759084728943,4.3733,205.72,205.67,5.44]
[1759084729342,12.1133,205.72,205.66,9.8144]
[1759084730545,7.74,205.72,205.67,4.3742]
[1759084730749,5.31185157,205.76,205.68,5.44]
[1759084730941,7.74,205.75,205.68,5.44]
[1759084732545,78.4065755,205.75,205.64,5.44]
[1759084732851,83.71842707,205.75,205.64,5.44]
[1759084733052,78.4065755,205.75,205.64,5.44]
[1759084733247,7.74,205.73,205.64,5.44]
[1759084733447,3.36336743,205.72,205.64,5.44]
[1759084733650,11.6537,205.7,205.64,5.44]
[1759084733848,3.36336743,205.69,205.63,4.375]
[1759084734051,7.28,205.71,205.64,4.3748]
[1759084734248,3.3632179,205.7,205.61,5.44]
[1759084734444,3.3632179,205.69,205.61,5.44]
[1759084734645,7.28,205.71,205.61,5.44]
[1759084734848,3.3632179,205.7,205.61,5.44]
[1759084735056,3.3632179,205.69,205.61,5.44]
[1759084735357,7.28,205.71,205.61,5.44]
[1759084735554,7.28,205.71,205.64,4.3747]
[1759084735555,3.36317851,205.7,205.64,4.3747]
[1759084735754,3.36317851,205.69,205.64,4.3747]
[1759084736055,7.28,205.71,205.65,5.44]
[1759084736253,3.36314028,205.7,205.64,4.3747]
[1759084736555,10.64314028,205.69,205.64,4.3747]
[1759084736755,7.28,205.69,205.65,5.44]
[1759084737450,7.28,205.69,205.64,4.3747]
[1759084737856,7.28,205.69,205.65,5.44]
[1759084738155,7.28,205.69,205.64,4.3747]
[1759084738857,7.28,205.69,205.65,5.44]
[1759084739056,7.28,205.69,205.64,4.3747]
[1759084739451,7.28,205.69,205.65,5.44]
[1759084739848,7.28,205.72,205.65,5.44]
[1759084740052,3.3629307,205.71,205.65,5.44]
[1759084740248,7.28,205.72,205.65,5.44]
[1759084740249,3.3629307,205.7,205.65,5.44]
[1759084740456,3.3629307,205.69,205.62,70.7088755]
[1759084740657,7.28,205.72,205.63,5.44]
[1759084740857,3.36250927,205.71,205.63,5.44]
[1759084741053,3.36250927,205.7,205.63,5.44]
[1759084741259,7.28,205.72,205.63,5.44]
[1759084741463,3.36203118,205.71,205.63,5.44]
[1759084741661,7.28,205.72,205.63,5.44]
[1759084741959,3.36207425,205.71,205.63,5.44]
[1759084742160,7.28,205.72,205.63,5.44]
[1759084742362,3.36172732,205.71,205.63,5.44]
[1759084742662,7.28,205.72,205.66,9.8143]
[1759084742856,10.64172732,205.71,205.67,5.44]
[1759084743062,7.28,205.71,205.66,4.3743]
[1759084743258,7.28,205.71,205.68,5.44]
[1759084743458,4.3731,205.73,205.68,5.44]
[1759084743658,7.28,205.71,205.68,5.44]